fUST/lending_fUST_20250103
["ID","MTS","AMOUNT","RATE_DAILY","PERIOD"]
[347484197,1735865464747,-500.0,0.0002,3]
[347484198,1735865464756,-500.0,0.0002,3]
[347484199,1735865464765,-200.32926924,0.0002,3]
[347484200,1735865464774,-500.0,0.0002,3]
[347484201,1735865464783,-558.9,0.0002,3]
[347484202,1735865464792,-500.0,0.0002,3]
[347484203,1735865464802,-500.0,0.0002,3]
[347484204,1735865464812,-500.0,0.0002,3]
[347484205,1735865464821,-500.0,0.0002,3]
[347484206,1735865464830,-500.0,0.0002,3]
[347484207,1735865464839,-559.57448212,0.0002,3]
[347484208,1735865464848,-500.0,0.0002,3]
[347484209,1735865464858,-500.0,0.0002,3]
[347484210,1735865464866,-500.0,0.0002,3]
[347484211,1735865464875,-500.0,0.0002,3]
[347484212,1735865464884,-500.0,0.0002,3]
[347484213,1735865464896,-500.0,0.0002,3]
[347484214,1735865464905,-500.0,0.0002,3]
[347484215,1735865464916,-500.0,0.0002,3]
[347484216,1735865464925,-500.0,0.0002,3]
[347484217,1735865464934,-500.0,0.0002,3]
[347484218,1735865464943,-927.13,0.0002,3]
[347484219,1735865464952,-500.0,0.0002,3]
[347484220,1735865464961,-500.0,0.0002,3]
[347484221,1735865464971,-500.0,0.0002,3]
[347484222,1735865464980,-668.6,0.0002,3]
[347484223,1735865464990,-500.0,0.0002,3]
[347484224,1735865464999,-500.0,0.0002,3]
[347484225,1735865465008,-500.0,0.0002,3]
[347484226,1735865465018,-500.0,0.0002,3]
[347484227,1735865465027,-500.0,0.0002,3]
[347484228,1735865465036,-500.0,0.0002,3]
[347484229,1735865465045,-500.0,0.0002,3]
[347484230,1735865465055,-500.0,0.0002,3]
[347484231,1735865465064,-500.0,0.0002,3]
[347484232,1735865465074,-201.74098495,0.0002,3]
[347484233,1735865465083,-526.04327992,0.0002,3]
[347484234,1735865465093,-1228.48,0.0002,3]
[347484235,1735865465102,-558.52,0.0002,3]
[347484236,1735865465111,-500.0,0.0002,3]
[347484237,1735865465120,-648.41,0.0002,3]
[347484238,1735865465130,-500.0,0.0002,3]
[347484239,1735865465139,-500.0,0.0002,3]
[347484240,1735865465149,-500.0,0.0002,3]
[347484241,1735865465158,-500.0,0.0002,3]
[347484242,1735865465167,-500.0,0.0002,3]
[347484243,1735865465176,-500.0,0.0002,3]
[347484244,1735865465185,-500.0,0.0002,3]
[347484245,1735865465197,-501.40697881,0.0002,3]
[347484246,1735865465206,-500.0,0.0002,3]
[347484247,1735865465216,-500.0,0.0002,3]
[347484248,1735865465226,-794.37,0.0002,3]
[347484249,1735865465235,-196.72615854,0.0002,3]
[347484250,1735865465245,-302.18279662,0.0002,3]
[347484251,1735865465255,-500.0,0.0002,3]
[347484252,1735865465264,-500.0,0.0002,3]
[347484253,1735865465273,-1203.83,0.0002,3]
[347484254,1735865465285,-747.13,0.0002,3]
[347484255,1735865465295,-500.0,0.0002,3]
[347484256,1735865465304,-500.0,0.0002,3]
[347484257,1735865465313,-1399.61,0.0002,3]
[347484258,1735865465323,-500.0,0.0002,3]
[347484259,1735865465332,-500.0,0.0002,3]
[347484260,1735865465341,-500.0,0.0002,3]
[347484261,1735865465350,-1160.34,0.0002,3]
[347484262,1735865465361,-500.0,0.0002,3]
[347484263,1735865465370,-500.0,0.0002,3]
[347484264,1735865465380,-500.0,0.0002,3]
[347484265,1735865465389,-500.0,0.0002,3]
[347484266,1735865465400,-500.0,0.0002,3]
[347484267,1735865465409,-500.0,0.0002,3]
[347484268,1735865465419,-1535.13,0.0002,3]
[347484269,1735865465431,-500.0,0.0002,3]
[347484270,1735865465440,-507.89,0.0002,3]
[347484271,1735865465449,-500.0,0.0002,3]
[347484272,1735865465458,-500.0,0.0002,3]
[347484273,1735865465468,-500.0,0.0002,3]
[347484274,1735865465477,-602.12,0.0002,3]
[347484275,1735865465487,-500.0,0.0002,3]
[347484276,1735865465496,-500.0,0.0002,3]
[347484277,1735865465505,-500.0,0.0002,3]
[347484278,1735865465514,-500.0,0.0002,3]
[347484279,1735865465524,-818.28,0.0002,3]
[347484280,1735865465533,-813.6,0.0002,3]
[347484281,1735865465542,-500.0,0.0002,3]
[347484282,1735865465552,-997.9,0.0002,3]
[347484283,1735865465562,-908.33,0.0002,3]
[347484284,1735865465571,-500.0,0.0002,3]
[347484285,1735865465581,-181.539233,0.0002,2]
[347484286,1735865465590,-500.0,0.0002,3]
[347484287,1735865465600,-2208.04,0.0002,3]
[347484288,1735865465609,-841.06,0.0002,3]
[347484289,1735865465619,-902.18,0.0002,3]
[347484290,1735865465628,-500.0,0.0002,3]
[347484291,1735865465638,-952.92,0.0002,3]
[347484292,1735865465648,-839.21,0.0002,3]
[347484293,1735865465658,-798.18,0.0002,3]
[347484294,1735865465667,-500.0,0.0002,3]
[347484295,1735865465676,-754.24,0.0002,3]
[347484296,1735865465685,-2945.78,0.0002,3]
[347484297,1735865465695,-500.0,0.0002,3]
[347484298,1735865465704,-507.06642463,0.0002,3]
[347484299,1735865465713,-500.0,0.0002,3]
[347484300,1735865465722,-500.0,0.0002,3]
[347484301,1735865465731,-500.0,0.0002,3]
[347484302,1735865465741,-4132.49,0.0002,3]
[347484303,1735865465750,-500.0,0.0002,3]
[347484304,1735865465759,-500.0,0.0002,3]
[347484305,1735865465769,-500.0,0.0002,3]
[347484306,1735865465778,-500.0,0.0002,3]
[347484307,1735865465787,-500.0,0.0002,3]
[347484308,1735865465796,-500.0,0.0002,3]
[347484309,1735865465806,-500.0,0.0002,3]
[347484310,1735865465815,-500.0,0.0002,3]
[347484311,1735865465824,-500.0,0.0002,3]
[347484312,1735865465834,-500.0,0.0002,3]
[347484313,1735865465843,-542.61,0.0002,3]
[347484314,1735865465852,-1312.71,0.0002,3]
[347484315,1735865465861,-500.0,0.0002,3]
[347484316,1735865465870,-814.1,0.0002,3]
[347484317,1735865465879,-500.0,0.0002,3]
[347484318,1735865465889,-767.87,0.0002,3]
[347484319,1735865465898,-500.0,0.0002,3]
[347484320,1735865465907,-1593.75,0.0002,3]
[347484321,1735865465916,-16113.55,0.0002,3]
[347484322,1735865465925,-1706.84,0.0002,3]
[347484323,1735865465934,-500.0,0.0002,3]
[347484324,1735865465943,-500.0,0.0002,3]
[347484325,1735865465952,-500.0,0.0002,3]
[347484326,1735865465962,-500.0,0.0002,3]
[347484327,1735865465971,-1249.55,0.0002,3]
[347484328,1735865465981,-500.0,0.0002,3]
[347484329,1735865465990,-4152.27,0.0002,3]
[347484330,1735865465999,-500.0,0.0002,3]
[347484331,1735865466008,-33331.61,0.0002,3]
[347484332,1735865466018,-500.0,0.0002,3]
[347484333,1735865466027,-597.8079362,0.0002,3]
[347484334,1735865466036,-1037.19,0.0002,3]
[347484335,1735865466046,-500.0,0.0002,3]
[347484336,1735865466055,-500.0,0.0002,3]
[347484337,1735865466064,-500.0,0.0002,3]
[347484338,1735865466074,-500.0,0.0002,3]
[347484339,1735865466083,-904.46,0.0002,3]
[347484340,1735865466093,-500.0,0.0002,3]
[347484341,1735865466102,-2768.46,0.0002,3]
[347484342,1735865466111,-1621.71,0.0002,3]
[347484343,1735865466121,-825.82,0.0002,3]
[347484344,1735865466130,-3450.19992012,0.0002,2]
[347484345,1735865466139,-717.9,0.0002,3]
[347484346,1735865466149,-500.0,0.0002,3]
[347484347,1735865466158,-500.0,0.0002,3]
[347484348,1735865466167,-500.0,0.0002,3]
[347484349,1735865466177,-500.0,0.0002,3]
[347484350,1735865466186,-500.0,0.0002,3]
[347484351,1735865466196,-500.0,0.0002,3]
[347484352,1735865466205,-500.0,0.0002,3]
[347484353,1735865466215,-500.0,0.0002,3]
[347484354,1735865466224,-1485.99,0.0002,3]
[347484355,1735865466233,-500.0,0.0002,3]
[347484356,1735865466242,-500.0,0.0002,3]
[347484357,1735865466252,-176.25810038,0.0002,3]
[347484358,1735865466350,-500.0,0.0002,3]
[347484359,1735865466362,-1254.69,0.0002,3]
[347484360,1735865466372,-500.0,0.0002,3]
[347484361,1735865466381,-3113.88,0.0002,3]
[347484362,1735865466391,-1147.85,0.0002,3]
[347484363,1735865466400,-500.0,0.0002,3]
[347484364,1735865466410,-500.0,0.0002,3]
[347484365,1735865466419,-547.36212406,0.0002,3]
[347484366,1735865466429,-500.0,0.0002,3]
[347484367,1735865466438,-500.0,0.0002,3]
[347484368,1735865466447,-8775.59,0.0002,3]
[347484369,1735865466456,-411.56461443,0.0002,3]
[347484370,1735865466466,-500.0,0.0002,3]
[347484371,1735865466475,-500.0,0.0002,3]
[347484372,1735865466484,-500.0,0.0002,3]
[347484373,1735865466495,-2602.27,0.0002,3]
[347484374,1735865466507,-715.72,0.0002,3]
[347484375,1735865466518,-200.0,0.0002,3]
[347484376,1735865466528,-646.34,0.0002,3]
[347484377,1735865466536,-500.0,0.0002,3]
[347484378,1735865466545,-675.05,0.0002,3]
[347484379,1735865466554,-500.0,0.0002,3]
[347484380,1735865466563,-500.0,0.0002,3]
[347484381,1735865466572,-500.0,0.0002,3]
[347484382,1735865466582,-1326.66,0.0002,3]
[347484383,1735865466591,-500.0,0.0002,3]
[347484384,1735865466602,-500.0,0.0002,3]
[347484385,1735865466611,-1565.13,0.0002,3]
[347484386,1735865466620,-753.35,0.0002,3]
[347484387,1735865466630,-500.0,0.0002,3]
[347484388,1735865466641,-500.0,0.0002,3]
[347484389,1735865466651,-3451.61423623,0.0002,2]
[347484390,1735865466660,-3451.6142362,0.0002,2]
[347484391,1735865466668,-3451.6142362,0.0002,2]
[347484392,1735865466677,-3451.6142362,0.0002,2]
[347484393,1735865466687,-10846.51702306,0.0002,2]
[347484394,1735865466695,-10846.51702306,0.0002,2]
[347484395,1735865466704,-10846.51702306,0.0002,2]
[347484396,1735865466714,-10846.51702306,0.0002,2]
[347484397,1735865466723,-4052.47486957,0.00020003,2]
[347484398,1735865466732,-1001.30033825,0.00020021,2]
[347484399,1735865466741,-500.96962135,0.00020021,2]
[347484400,1735865466750,-1000.0,0.00020021,2]
[347484401,1735865466759,-332.4,0.00020081,5]
[347484402,1735865466768,-4052.47486957,0.00020107,2]
[347484403,1735865466778,-4052.47486957,0.0002021,2]
[347484404,1735865466787,-1898.65358984,0.00020259,2]
[347484405,1735865466797,-500.0,0.00020272,2]
[347484406,1735865466806,-299.32,0.00020272,2]
[347484407,1735865466815,-150.0,0.00020273,2]
[347484408,1735865466824,-500.0,0.00020273,3]
[347484409,1735865466833,-500.0,0.00020273,3]
[347484410,1735865466842,-500.0,0.00020273,3]
[347484411,1735865466851,-500.0,0.00020273,3]
[347484412,1735865466860,-500.0,0.00020273,3]
[347484413,1735865466869,-500.0,0.00020273,3]
[347484414,1735865466879,-259.76121939,0.00020273,3]
[347484415,1735865466888,-500.0,0.00020273,3]
[347484416,1735865466901,-651.65,0.00020273,3]
[347484417,1735865466910,-500.0,0.00020273,3]
[347484418,1735865466919,-500.0,0.00020273,3]
[347484419,1735865466927,-500.0,0.00020273,3]
[347484420,1735865466936,-500.0,0.00020273,3]
[347484421,1735865466945,-500.0,0.00020273,3]
[347484422,1735865466954,-500.0,0.00020273,2]
[347484423,1735865466963,-500.0,0.00020273,3]
[347484424,1735865466972,-500.0,0.00020273,3]
[347484425,1735865466981,-500.0,0.00020273,3]
[347484426,1735865466990,-6883.64,0.00020273,3]
[347484427,1735865466999,-500.0,0.00020273,3]
[347484428,1735865467008,-500.0,0.00020273,3]
[347484429,1735865467017,-500.0,0.00020273,3]
[347484430,1735865467026,-500.0,0.00020273,3]
[347484431,1735865467037,-867.62,0.00020273,3]
[347484432,1735865467046,-500.0,0.00020273,3]
[347484433,1735865467055,-505.25555965,0.00020273,3]
[347484434,1735865467064,-495.0,0.00020273,3]
[347484435,1735865467073,-504.04714925,0.00020273,3]
[347484436,1735865467082,-500.0,0.00020273,3]
[347484437,1735865467091,-500.0,0.00020273,3]
[347484438,1735865467100,-500.0,0.00020273,3]
[347484439,1735865467110,-500.0,0.00020273,3]
[347484440,1735865467119,-500.0,0.00020273,3]
[347484441,1735865467128,-500.0,0.00020273,3]
[347484442,1735865467137,-1404.47,0.00020273,2]
[347484443,1735865467150,-500.0,0.00020273,3]
[347484444,1735865467159,-500.0,0.00020273,3]
[347484445,1735865467168,-500.0,0.00020273,3]
[347484446,1735865467177,-500.0,0.00020273,3]
[347484447,1735865467187,-500.0,0.00020273,3]
[347484448,1735865467196,-500.0,0.00020273,3]
[347484449,1735865467205,-500.0,0.00020273,3]
[347484450,1735865467214,-500.0,0.00020273,3]
[347484451,1735865467224,-500.0,0.00020273,3]
[347484452,1735865467233,-500.0,0.00020273,3]
[347484453,1735865467242,-674.98,0.00020273,3]
[347484454,1735865467252,-500.0,0.00020273,3]
[347484455,1735865467261,-751.5,0.00020273,3]
[347484456,1735865467270,-500.0,0.00020273,3]
[347484457,1735865467279,-500.0,0.00020273,3]
[347484458,1735865467291,-500.0,0.00020273,3]
[347484459,1735865467301,-500.0,0.00020273,3]
[347484460,1735865467310,-1238.15,0.00020273,3]
[347484461,1735865467319,-500.0,0.00020273,3]
[347484462,1735865467329,-266.32774883,0.00020273,3]
[347484463,1735865467338,-500.0,0.00020273,3]
[347484464,1735865467347,-584.9175672,0.00020273,3]
[347484465,1735865467356,-500.0,0.00020273,3]
[347484466,1735865467366,-388.54187353,0.00020273,3]
[347484467,1735865467376,-500.0,0.00020273,3]
[347484468,1735865467385,-504.23777612,0.00020273,3]
[347484469,1735865467396,-500.0,0.00020273,3]
[347484470,1735865467405,-500.0,0.00020273,3]
[347484471,1735865467414,-500.0,0.00020273,3]
[347484472,1735865467423,-500.0,0.00020273,3]
[347484473,1735865467432,-502.97333494,0.00020273,3]
[347484474,1735865467440,-558.9,0.00020273,3]
[347484475,1735865467449,-500.0,0.00020273,3]
[347484476,1735865467458,-500.0,0.00020273,3]
[347484477,1735865467466,-500.0,0.00020273,3]
[347484478,1735865467475,-500.0,0.00020273,3]
[347484479,1735865467484,-500.0,0.00020273,3]
[347484480,1735865467493,-500.0,0.00020273,3]
[347484481,1735865467502,-500.0,0.00020273,3]
[347484482,1735865467511,-500.0,0.00020273,3]
[347484483,1735865467520,-500.0,0.00020273,3]
[347484484,1735865467529,-500.0,0.00020273,3]
[347484485,1735865467538,-927.13,0.00020273,3]
[347484486,1735865467547,-500.0,0.00020273,3]
[347484487,1735865467556,-503.03649116,0.00020273,3]
[347484488,1735865467565,-668.6,0.00020273,3]
[347484489,1735865467574,-500.0,0.00020273,3]
[347484490,1735865467583,-500.0,0.00020273,3]
[347484491,1735865467593,-504.84278697,0.00020273,3]
[347484492,1735865467602,-500.0,0.00020273,3]
[347484493,1735865467611,-500.0,0.00020273,3]
[347484494,1735865467620,-172.0,0.00020273,3]
[347484495,1735865467629,-502.31500196,0.00020273,3]
[347484496,1735865467639,-1228.48,0.00020273,3]
[347484497,1735865467649,-558.52,0.00020273,3]
[347484498,1735865467658,-500.0,0.00020273,3]
[347484499,1735865467667,-648.41,0.00020273,3]
[347484500,1735865467676,-500.0,0.00020273,3]
[347484501,1735865467685,-305.91207776,0.00020273,3]
[347484502,1735865467694,-500.0,0.00020273,3]
[347484503,1735865467703,-500.0,0.00020273,3]
[347484504,1735865467713,-500.0,0.00020273,3]
[347484505,1735865467722,-500.0,0.00020273,3]
[347484506,1735865467731,-500.0,0.00020273,3]
[347484507,1735865467740,-500.0,0.00020273,3]
[347484508,1735865467749,-794.37,0.00020273,3]
[347484509,1735865467758,-500.0,0.00020273,3]
[347484510,1735865467767,-500.0,0.00020273,3]
[347484511,1735865467776,-1203.83,0.00020273,3]
[347484512,1735865467785,-747.13,0.00020273,3]
[347484513,1735865467794,-500.0,0.00020273,3]
[347484514,1735865467803,-500.0,0.00020273,3]
[347484515,1735865467812,-1399.61,0.00020273,3]
[347484516,1735865467821,-500.0,0.00020273,3]
[347484517,1735865467831,-377.85298173,0.00020273,3]
[347484518,1735865467840,-500.0,0.00020273,3]
[347484519,1735865467849,-1160.34,0.00020273,3]
[347484520,1735865467858,-500.0,0.00020273,3]
[347484521,1735865467868,-500.0,0.00020273,3]
[347484522,1735865467877,-309.85132786,0.00020273,3]
[347484523,1735865467886,-500.0,0.00020273,3]
[347484524,1735865467898,-500.0,0.00020273,3]
[347484525,1735865467907,-472.7103995,0.00020273,3]
[347484526,1735865467916,-1535.13,0.00020273,3]
[347484527,1735865467925,-500.0,0.00020273,3]
[347484528,1735865467935,-507.89,0.00020273,3]
[347484529,1735865467944,-500.0,0.00020273,3]
[347484530,1735865467953,-500.0,0.00020273,3]
[347484531,1735865467963,-341.75120231,0.00020273,3]
[347484532,1735865467972,-602.12,0.00020273,3]
[347484533,1735865467982,-500.0,0.00020273,3]
[347484534,1735865467991,-500.0,0.00020273,3]
[347484535,1735865468001,-500.0,0.00020273,3]
[347484536,1735865468010,-500.0,0.00020273,3]
[347484537,1735865468019,-818.28,0.00020273,3]
[347484538,1735865468028,-813.6,0.00020273,3]
[347484539,1735865468037,-997.9,0.00020273,3]
[347484540,1735865468046,-500.0,0.00020273,3]
[347484541,1735865468055,-908.33,0.00020273,3]
[347484542,1735865468065,-500.0,0.00020273,3]
[347484543,1735865468074,-2208.04,0.00020273,3]
[347484544,1735865468083,-841.06,0.00020273,3]
[347484545,1735865468092,-902.18,0.00020273,3]
[347484546,1735865468101,-500.0,0.00020273,3]
[347484547,1735865468110,-952.92,0.00020273,3]
[347484548,1735865468119,-839.21,0.00020273,3]
[347484549,1735865468128,-798.18,0.00020273,3]
[347484550,1735865468139,-506.98458546,0.00020273,3]
[347484551,1735865468150,-754.24,0.00020273,3]
[347484552,1735865468160,-2945.78,0.00020273,3]
[347484553,1735865468169,-500.0,0.00020273,3]
[347484554,1735865468179,-500.0,0.00020273,3]
[347484555,1735865468189,-500.0,0.00020273,3]
[347484556,1735865468198,-500.0,0.00020273,3]
[347484557,1735865468207,-4132.49,0.00020273,3]
[347484558,1735865468216,-500.0,0.00020273,3]
[347484559,1735865468226,-500.0,0.00020273,3]
[347484560,1735865468235,-500.0,0.00020273,3]
[347484561,1735865468244,-500.0,0.00020273,3]
[347484562,1735865468253,-500.0,0.00020273,3]
[347484563,1735865468263,-500.0,0.00020273,3]
[347484564,1735865468272,-500.0,0.00020273,3]
[347484565,1735865468282,-500.0,0.00020273,3]
[347484566,1735865468294,-542.61,0.00020273,3]
[347484567,1735865468303,-1312.71,0.00020273,3]
[347484568,1735865468312,-500.0,0.00020273,3]
[347484569,1735865468322,-814.1,0.00020273,3]
[347484570,1735865468333,-500.0,0.00020273,3]
[347484571,1735865468342,-767.87,0.00020273,3]
[347484572,1735865468352,-500.0,0.00020273,3]
[347484573,1735865468362,-1593.75,0.00020273,3]
[347484574,1735865468371,-16113.55,0.00020273,3]
[347484575,1735865468381,-1706.84,0.00020273,3]
[347484576,1735865468390,-504.92980047,0.00020273,3]
[347484577,1735865468401,-500.0,0.00020273,3]
[347484578,1735865468410,-500.0,0.00020273,3]
[347484579,1735865468419,-1249.55,0.00020273,3]
[347484580,1735865468430,-469.02197918,0.00020273,3]
[347484581,1735865468441,-4152.27,0.00020273,3]
[347484582,1735865468450,-500.0,0.00020273,3]
[347484583,1735865468460,-33331.61,0.00020273,3]
[347484584,1735865468469,-500.0,0.00020273,3]
[347484585,1735865468478,-1037.19,0.00020273,3]
[347484586,1735865468488,-500.0,0.00020273,3]
[347484587,1735865468497,-500.0,0.00020273,3]
[347484588,1735865468507,-904.46,0.00020273,3]
[347484589,1735865468516,-500.0,0.00020273,3]
[347484590,1735865468525,-2768.46,0.00020273,3]
[347484591,1735865468534,-1621.71,0.00020273,3]
[347484592,1735865468543,-825.82,0.00020273,3]
[347484593,1735865468553,-717.9,0.00020273,3]
[347484594,1735865468562,-500.0,0.00020273,3]
[347484595,1735865468571,-500.0,0.00020273,3]
[347484596,1735865468580,-325.68209479,0.00020273,3]
[347484597,1735865468590,-500.0,0.00020273,3]
[347484598,1735865468599,-500.0,0.00020273,3]
[347484599,1735865468608,-500.0,0.00020273,3]
[347484600,1735865468617,-1485.99,0.00020273,3]
[347484601,1735865468626,-500.0,0.00020273,3]
[347484602,1735865468636,-500.0,0.00020273,3]
[347484603,1735865468646,-500.0,0.00020273,3]
[347484604,1735865468656,-1254.69,0.00020273,3]
[347484605,1735865468665,-500.0,0.00020273,3]
[347484606,1735865468674,-3113.88,0.00020273,3]
[347484607,1735865468684,-499.0,0.00020273,2]
[347484608,1735865468693,-1147.85,0.00020273,3]
[347484609,1735865468702,-500.0,0.00020273,3]
[347484610,1735865468712,-500.0,0.00020273,3]
[347484611,1735865468721,-500.0,0.00020273,3]
[347484612,1735865468731,-500.0,0.00020273,3]
[347484613,1735865468740,-8775.59,0.00020273,3]
[347484614,1735865468749,-500.0,0.00020273,3]
[347484615,1735865468759,-374.0294689,0.00020273,3]
[347484616,1735865468768,-510.09432512,0.00020273,3]
[347484617,1735865468777,-2602.27,0.00020273,3]
[347484618,1735865468889,-715.72,0.00020273,3]
[347484619,1735865468900,-200.0,0.00020273,3]
[347484620,1735865468909,-646.34,0.00020273,3]
[347484621,1735865468918,-504.76654028,0.00020273,3]
[347484622,1735865468927,-675.05,0.00020273,3]
[347484623,1735865468937,-500.0,0.00020273,3]
[347484624,1735865468946,-500.0,0.00020273,3]
[347484625,1735865468955,-500.0,0.00020273,3]
[347484626,1735865468964,-1326.66,0.00020273,3]
[347484627,1735865468974,-500.0,0.00020273,3]
[347484628,1735865468983,-500.0,0.00020273,3]
[347484629,1735865468992,-1565.13,0.00020273,3]
[347484630,1735865469001,-753.35,0.00020273,3]
[347484631,1735865469010,-500.0,0.00020273,3]
[347484632,1735865469019,-500.0,0.00020274,2]
[347484633,1735865469028,-150.08,0.00020274,2]
[347484634,1735865469037,-332.4,0.00020313,5]
[347484635,1735865469046,-4052.47486957,0.00020314,2]
[347484636,1735865469055,-2426.11854662,0.0002041,2]
[347484637,1735865469065,-4052.47486957,0.00020417,2]
[347484638,1735865469075,-400.0,0.00020447,2]
[347484639,1735865469084,-172792.68879458,0.000205,2]
[347484640,1735865469093,-543.785692,0.00020521,2]
[347484641,1735865469102,-4052.47486957,0.00020521,2]
[347484642,1735865469111,-500.0,0.00020546,2]
[347484643,1735865469120,-332.4,0.00020546,6]
[347484644,1735865469129,-500.0,0.00020547,3]
[347484645,1735865469139,-500.0,0.00020547,3]
[347484646,1735865469148,-500.0,0.00020547,3]
[347484647,1735865469157,-500.0,0.00020547,3]
[347484648,1735865469166,-500.0,0.00020547,3]
[347484649,1735865469175,-500.0,0.00020547,3]
[347484650,1735865469184,-500.0,0.00020547,3]
[347484651,1735865469194,-651.65,0.00020547,3]
[347484652,1735865469204,-235.40312018,0.00020547,3]
[347484653,1735865469213,-500.0,0.00020547,3]
[347484654,1735865469222,-500.0,0.00020547,3]
[347484655,1735865469231,-588.38407902,0.00020547,3]
[347484656,1735865469240,-500.0,0.00020547,3]
[347484657,1735865469249,-500.0,0.00020547,2]
[347484658,1735865469258,-371.46882523,0.00020547,3]
[347484659,1735865469268,-500.0,0.00020547,3]
[347484660,1735865469277,-504.043751,0.00020547,3]
[347484661,1735865469293,-6883.64,0.00020547,3]
[347484662,1735865469305,-500.0,0.00020547,3]
[347484663,1735865469315,-507.10699328,0.00020547,3]
[347484664,1735865469326,-500.0,0.00020547,3]
[347484665,1735865469335,-500.0,0.00020547,3]
[347484666,1735865469344,-867.62,0.00020547,3]
[347484667,1735865469354,-500.0,0.00020547,3]
[347484668,1735865469363,-500.0,0.00020547,3]
[347484669,1735865469373,-504.56300646,0.00020547,3]
[347484670,1735865469384,-500.0,0.00020547,3]
[347484671,1735865469394,-196.88,0.00020547,3]
[347484672,1735865469403,-500.0,0.00020547,3]
[347484673,1735865469412,-1404.47,0.00020547,2]
[347484674,1735865469421,-500.0,0.00020547,3]
[347484675,1735865469431,-500.0,0.00020547,3]
[347484676,1735865469440,-500.0,0.00020547,3]
[347484677,1735865469449,-500.0,0.00020547,3]
[347484678,1735865469459,-510.29909263,0.00020547,3]
[347484679,1735865469469,-500.0,0.00020547,3]
[347484680,1735865469479,-500.0,0.00020547,3]
[347484681,1735865469489,-500.0,0.00020547,3]
[347484682,1735865469498,-500.0,0.00020547,3]
[347484683,1735865469507,-674.98,0.00020547,3]
[347484684,1735865469516,-500.0,0.00020547,3]
[347484686,1735865469525,-751.5,0.00020547,3]
[347484687,1735865469534,-583.93453435,0.00020547,3]
[347484688,1735865469543,-500.0,0.00020547,3]
[347484689,1735865469552,-500.0,0.00020547,3]
[347484690,1735865469562,-167.98749268,0.00020547,3]
[347484691,1735865469573,-1238.15,0.00020547,3]
[347484692,1735865469582,-500.0,0.00020547,3]
[347484693,1735865469592,-500.0,0.00020547,3]
[347484694,1735865469602,-500.0,0.00020547,3]
[347484695,1735865469612,-500.0,0.00020547,3]
[347484696,1735865469622,-500.0,0.00020547,3]
[347484697,1735865469632,-500.0,0.00020547,3]